[Event "Early-Titled-Tuesday-Blitz-February-20-2024"]
[Site "Chess.com"]
[Date "2024.02.20"]
[Round "5"]
[White "Casablanca"]
[Black "HeroWilczek"]
[Result "1-0"]
[WhiteElo "2612"]
[BlackElo "2472"]
[TimeControl "180+1"]
[EndTime "8:57:08 PST"]
[Termination "Casablanca won by resignation"]

1. Nf3 {[%clk 0:02:28.7]} 1... Nf6 {[%clk 0:02:58.6]} 2. g3 {[%clk 0:02:29.6]}
2... e6 {[%clk 0:02:56.1]} 3. Bg2 {[%clk 0:02:30.5]} 3... d5 {[%clk 0:02:54.2]}
4. O-O {[%clk 0:02:31.4]} 4... Be7 {[%clk 0:02:52.4]} 5. c4 {[%clk 0:02:31.3]}
5... O-O {[%clk 0:02:52.7]} 6. cxd5 {[%clk 0:02:30.5]} 6... exd5 {[%clk
0:02:52.8]} 7. b3 {[%clk 0:02:29.9]} 7... Bf5 {[%clk 0:02:52]} 8. Bb2 {[%clk
0:02:30.2]} 8... c6 {[%clk 0:02:52.6]} 9. d3 {[%clk 0:02:28.3]} 9... Re8 {[%clk
0:02:52.5]} 10. Nc3 {[%clk 0:02:27]} 10... Nbd7 {[%clk 0:02:50.4]} 11. Re1
{[%clk 0:02:26.1]} 11... h6 {[%clk 0:02:49.6]} 12. h3 {[%clk 0:02:26.3]} 12...
Bf8 {[%clk 0:02:45.2]} 13. Rc1 {[%clk 0:02:26.3]} 13... a5 {[%clk 0:02:43.8]}
14. Qd2 {[%clk 0:02:21.6]} 14... Qb6 {[%clk 0:02:41.6]} 15. e3 {[%clk
0:02:16.7]} 15... Rad8 {[%clk 0:02:40]} 16. Na4 {[%clk 0:02:11.7]} 16... Qa6
{[%clk 0:02:34.7]} 17. Bf1 {[%clk 0:02:02.8]} 17... Bb4 {[%clk 0:02:15.7]} 18.
Bc3 {[%clk 0:02:00.8]} 18... Bxc3 {[%clk 0:02:09.9]} 19. Qxc3 {[%clk 0:02:00.6]}
19... Qa7 {[%clk 0:01:55.2]} 20. Nc5 {[%clk 0:01:39.8]} 20... Nxc5 {[%clk
0:01:54.1]} 21. Qxc5 {[%clk 0:01:40.7]} 21... Qxc5 {[%clk 0:01:54.8]} 22. Rxc5
{[%clk 0:01:41.6]} 22... a4 {[%clk 0:01:55.7]} 23. b4 {[%clk 0:01:31.1]} 23...
Nd7 {[%clk 0:01:38.6]} 24. Ra5 {[%clk 0:01:25.4]} 24... Ra8 {[%clk 0:01:37]} 25.
Rxa8 {[%clk 0:01:25.1]} 25... Rxa8 {[%clk 0:01:37.9]} 26. a3 {[%clk 0:01:25]}
26... c5 {[%clk 0:01:34]} 27. bxc5 {[%clk 0:01:22]} 27... Nxc5 {[%clk
0:01:34.9]} 28. d4 {[%clk 0:01:22.4]} 28... Nb3 {[%clk 0:01:20.8]} 29. Bb5
{[%clk 0:01:17.1]} 29... Bxh3 {[%clk 0:01:18.9]} 30. Rb1 {[%clk 0:01:13.4]}
30... Bf5 {[%clk 0:01:11.7]} 31. Rb2 {[%clk 0:01:13.6]} 31... Be4 {[%clk
0:01:04.3]} 32. Ne5 {[%clk 0:01:08]} 32... Rc8 {[%clk 0:01:00.2]} 33. f3 {[%clk
0:01:08.6]} 33... Rc1+ {[%clk 0:00:47.2]} 34. Kf2 {[%clk 0:01:07.8]} 34... Rc2+
{[%clk 0:00:47.7]} 35. Rxc2 {[%clk 0:01:01.3]} 35... Bxc2 {[%clk 0:00:48.6]} 36.
Bxa4 {[%clk 0:01:01.8]} 36... Nxd4 {[%clk 0:00:49.1]} 37. Be8 {[%clk 0:01:02.5]}
37... Nc6 {[%clk 0:00:24.1]} 38. Bxf7+ {[%clk 0:01:02.5]} 38... Kf8 {[%clk
0:00:22.9]} 39. Nxc6 {[%clk 0:00:58.8]} 39... bxc6 {[%clk 0:00:23.8]} 40. Bh5
{[%clk 0:00:47.3]} 40... Ke7 {[%clk 0:00:23.9]} 41. Ke2 {[%clk 0:00:45.8]} 41...
Kd6 {[%clk 0:00:24.3]} 42. Kd2 {[%clk 0:00:46.1]} 42... Ba4 {[%clk 0:00:24]} 43.
Kc3 {[%clk 0:00:43.8]} 43... c5 {[%clk 0:00:23.5]} 44. f4 {[%clk 0:00:39.3]}
44... g5 {[%clk 0:00:15.3]} 45. Bf3 {[%clk 0:00:34.4]} 45... gxf4 {[%clk
0:00:10.7]} 46. gxf4 {[%clk 0:00:24]} 46... Be8 {[%clk 0:00:08.9]} 47. Bd1
{[%clk 0:00:23.7]} 47... h5 {[%clk 0:00:08.9]} 48. a4 {[%clk 0:00:24.4]} 48...
h4 {[%clk 0:00:09.1]} 49. a5 {[%clk 0:00:25.2]} 49... h3 {[%clk 0:00:08.3]} 50.
Bf3 {[%clk 0:00:25.7]} 50... Bc6 {[%clk 0:00:07.8]} 51. Kd3 {[%clk 0:00:20.8]}
51... d4 {[%clk 0:00:05.3]} 52. e4 {[%clk 0:00:20.9]} 52... Bb5+ {[%clk
0:00:04.8]} 53. Kd2 {[%clk 0:00:20.4]} 53... c4 {[%clk 0:00:04.7]} 54. e5+
{[%clk 0:00:20.5]} 54... Ke7 {[%clk 0:00:04.3]} 55. f5 {[%clk 0:00:20.1]} 55...
c3+ {[%clk 0:00:04.6]} 56. Kc2 {[%clk 0:00:19.8]} 56... Ba4+ {[%clk 0:00:04.5]}
57. Kd3 {[%clk 0:00:20.3]} 57... c2 {[%clk 0:00:04.8]} 58. Kd2 {[%clk
0:00:20.4]} 58... d3 {[%clk 0:00:05.5]} 59. Bg4 {[%clk 0:00:20.4]} 59... h2
{[%clk 0:00:05.2]} 60. f6+ {[%clk 0:00:21.3]} 60... Kf8 {[%clk 0:00:05.3]} 61.
Bf3 {[%clk 0:00:21.8]} 61... Bb3 {[%clk 0:00:04]} 62. a6 {[%clk 0:00:21.7]}
62... Be6 {[%clk 0:00:01.7]} 63. a7 {[%clk 0:00:21.9]} 63... Bg4 {[%clk
0:00:02.6]} 64. a8=Q+ {[%clk 0:00:21.9]} 64... Kf7 {[%clk 0:00:03.4]} 65. Qd5+
{[%clk 0:00:21.3]} 65... Kg6 {[%clk 0:00:03.8]} 66. Qe4+ {[%clk 0:00:21]} 66...
Kf7 {[%clk 0:00:03.8]} 67. Qxg4 {[%clk 0:00:20.8]} 1-0

[Event "Early-Titled-Tuesday-Blitz-February-20-2024"]
[Site "Chess.com"]
[Date "2024.02.20"]
[Round "5"]
[White "Alexchess1984"]
[Black "K_A_S_T_O_R"]
[Result "1/2-1/2"]
[WhiteElo "2645"]
[BlackElo "2849"]
[TimeControl "180+1"]
[EndTime "8:57:15 PST"]
[Termination "Game drawn by repetition"]

1. e4 {[%clk 0:03:00.9]} 1... c5 {[%clk 0:02:59.3]} 2. c3 {[%clk 0:02:58.9]}
2... Nf6 {[%clk 0:02:56]} 3. e5 {[%clk 0:02:58.6]} 3... Nd5 {[%clk 0:02:56.6]}
4. Bc4 {[%clk 0:02:57.3]} 4... Nb6 {[%clk 0:02:55.1]} 5. Bb3 {[%clk 0:02:55.9]}
5... Nc6 {[%clk 0:02:55.1]} 6. Nf3 {[%clk 0:02:54.8]} 6... d5 {[%clk 0:02:52.8]}
7. exd6 {[%clk 0:02:53.3]} 7... Qxd6 {[%clk 0:02:53.2]} 8. Na3 {[%clk
0:02:46.9]} 8... Be6 {[%clk 0:02:49.1]} 9. d4 {[%clk 0:02:36.7]} 9... cxd4
{[%clk 0:02:42]} 10. O-O {[%clk 0:02:29.1]} 10... Bxb3 {[%clk 0:02:39.2]} 11.
axb3 {[%clk 0:02:26.2]} 11... a6 {[%clk 0:02:33.8]} 12. Qe2 {[%clk 0:02:17.7]}
12... Rd8 {[%clk 0:02:32.4]} 13. Rd1 {[%clk 0:02:13.9]} 13... Qc7 {[%clk
0:02:26.2]} 14. Qe4 {[%clk 0:02:03.7]} 14... e6 {[%clk 0:02:20.1]} 15. Nxd4
{[%clk 0:01:58.8]} 15... Nxd4 {[%clk 0:02:19.3]} 16. Rxd4 {[%clk 0:01:57.4]}
16... Rxd4 {[%clk 0:02:18.5]} 17. Qxd4 {[%clk 0:01:56.8]} 17... e5 {[%clk
0:02:13.2]} 18. Qg4 {[%clk 0:01:51.7]} 18... Qd7 {[%clk 0:02:09]} 19. Qxd7+
{[%clk 0:01:44.7]} 19... Kxd7 {[%clk 0:02:08.3]} 20. Be3 {[%clk 0:01:44.7]}
20... Nd5 {[%clk 0:02:08.6]} 21. Nc4 {[%clk 0:01:42.2]} 21... f6 {[%clk
0:02:07.6]} 22. Rd1 {[%clk 0:01:40.5]} 22... Ke6 {[%clk 0:02:06.8]} 23. b4
{[%clk 0:01:33.1]} 23... Be7 {[%clk 0:02:03.5]} 24. Na5 {[%clk 0:01:27.3]} 24...
b6 {[%clk 0:01:47.2]} 25. Nb3 {[%clk 0:01:24.7]} 25... Ra8 {[%clk 0:01:39.3]}
26. Ra1 {[%clk 0:01:22.6]} 26... f5 {[%clk 0:01:28.8]} 27. g3 {[%clk 0:01:18.8]}
27... g5 {[%clk 0:01:27.2]} 28. Kf1 {[%clk 0:01:09.1]} 28... f4 {[%clk
0:01:25.6]} 29. Bd2 {[%clk 0:01:08.9]} 29... Nf6 {[%clk 0:01:18]} 30. Re1 {[%clk
0:01:01.3]} 30... Kf5 {[%clk 0:01:16.4]} 31. f3 {[%clk 0:01:00.5]} 31... h5
{[%clk 0:01:13.3]} 32. Kg2 {[%clk 0:00:51.5]} 32... Bd6 {[%clk 0:01:12]} 33. Rd1
{[%clk 0:00:46.9]} 33... Bc7 {[%clk 0:01:10.6]} 34. Be1 {[%clk 0:00:41.3]} 34...
Ke6 {[%clk 0:01:06.7]} 35. Bf2 {[%clk 0:00:39.7]} 35... Rd8 {[%clk 0:00:56.8]}
36. Rxd8 {[%clk 0:00:37.5]} 36... Bxd8 {[%clk 0:00:57.7]} 37. c4 {[%clk
0:00:37]} 37... Kf5 {[%clk 0:00:53.5]} 38. Nd2 {[%clk 0:00:32.9]} 38... e4
{[%clk 0:00:50.3]} 39. fxe4+ {[%clk 0:00:26.8]} 39... Nxe4 {[%clk 0:00:50.8]}
40. Nxe4 {[%clk 0:00:26.8]} 40... Kxe4 {[%clk 0:00:50.7]} 41. gxf4 {[%clk
0:00:26.5]} 41... Kxf4 {[%clk 0:00:49.8]} 42. h3 {[%clk 0:00:19.8]} 42... Ke4
{[%clk 0:00:49.2]} 43. b3 {[%clk 0:00:07.6]} 43... b5 {[%clk 0:00:47.5]} 44. c5
{[%clk 0:00:05.7]} 44... Kd5 {[%clk 0:00:46.9]} 45. Bg3 {[%clk 0:00:04.9]} 45...
Bf6 {[%clk 0:00:46.7]} 46. Be1 {[%clk 0:00:04.3]} 46... Be5 {[%clk 0:00:39.7]}
47. Kf3 {[%clk 0:00:04.6]} 47... Bd4 {[%clk 0:00:37.1]} 48. Bd2 {[%clk 0:00:04]}
48... Bf6 {[%clk 0:00:36.8]} 49. Be1 {[%clk 0:00:02.1]} 49... Bd8 {[%clk
0:00:36.8]} 50. Bd2 {[%clk 0:00:02.4]} 50... Ke5 {[%clk 0:00:35]} 51. Be1 {[%clk
0:00:02.6]} 51... Kf5 {[%clk 0:00:34.7]} 52. Bg3 {[%clk 0:00:02.1]} 52... g4+
{[%clk 0:00:33.5]} 53. hxg4+ {[%clk 0:00:00.9]} 53... hxg4+ {[%clk 0:00:34.4]}
54. Ke2 {[%clk 0:00:01.8]} 54... Ke6 {[%clk 0:00:32.9]} 55. c6 {[%clk
0:00:01.9]} 55... Bb6 {[%clk 0:00:32]} 56. Kd3 {[%clk 0:00:02.2]} 56... Bg1
{[%clk 0:00:28.8]} 57. Ke4 {[%clk 0:00:02.7]} 57... Bb6 {[%clk 0:00:26.6]} 58.
Kd3 {[%clk 0:00:03]} 58... Bg1 {[%clk 0:00:23.5]} 59. Ke4 {[%clk 0:00:03.6]}
59... Ke7 {[%clk 0:00:23.4]} 60. Kd3 {[%clk 0:00:03.9]} 60... Ke6 {[%clk
0:00:22.7]} 1/2-1/2

[Event "Early-Titled-Tuesday-Blitz-February-20-2024"]
[Site "Chess.com"]
[Date "2024.02.20"]
[Round "5"]
[White "Dinamo3"]
[Black "SirGerhard"]
[Result "1-0"]
[WhiteElo "2536"]
[BlackElo "2733"]
[TimeControl "180+1"]
[EndTime "8:57:15 PST"]
[Termination "Dinamo3 won by resignation"]

1. c4 {[%clk 0:02:53.9]} 1... e5 {[%clk 0:02:59.8]} 2. g3 {[%clk 0:02:53.9]}
2... Nf6 {[%clk 0:02:59.8]} 3. Bg2 {[%clk 0:02:54.1]} 3... Nc6 {[%clk
0:03:00.1]} 4. Nc3 {[%clk 0:02:52.9]} 4... Bc5 {[%clk 0:03:00.2]} 5. e3 {[%clk
0:02:52.6]} 5... d6 {[%clk 0:03:00.3]} 6. Nge2 {[%clk 0:02:53]} 6... O-O {[%clk
0:03:00.5]} 7. O-O {[%clk 0:02:53]} 7... a6 {[%clk 0:03:00.1]} 8. d3 {[%clk
0:02:53.1]} 8... Bf5 {[%clk 0:02:58.8]} 9. h3 {[%clk 0:02:52.9]} 9... Rb8 {[%clk
0:02:57]} 10. b3 {[%clk 0:02:44.9]} 10... h6 {[%clk 0:02:49.6]} 11. g4 {[%clk
0:02:43.4]} 11... Bh7 {[%clk 0:02:49.1]} 12. Bb2 {[%clk 0:02:43.5]} 12... Ne7
{[%clk 0:02:37.8]} 13. d4 {[%clk 0:02:33.6]} 13... exd4 {[%clk 0:02:35.6]} 14.
exd4 {[%clk 0:02:34.5]} 14... Ba7 {[%clk 0:02:29.5]} 15. Ng3 {[%clk 0:02:24.1]}
15... b5 {[%clk 0:02:22.5]} 16. cxb5 {[%clk 0:02:18.3]} 16... axb5 {[%clk
0:02:22.3]} 17. d5 {[%clk 0:02:02.4]} 17... b4 {[%clk 0:02:18.1]} 18. Nce2
{[%clk 0:01:56.8]} 18... Nd7 {[%clk 0:02:10.3]} 19. Nd4 {[%clk 0:01:53.6]} 19...
Ne5 {[%clk 0:02:04.9]} 20. Qd2 {[%clk 0:01:05.7]} 20... Nd3 {[%clk 0:01:57.6]}
21. Rad1 {[%clk 0:01:00.3]} 21... Nxb2 {[%clk 0:01:56.9]} 22. Qxb2 {[%clk
0:01:01.2]} 22... Ng6 {[%clk 0:01:55]} 23. Nc6 {[%clk 0:01:00]} 23... Qg5 {[%clk
0:01:37]} 24. Nxa7 {[%clk 0:00:59.2]} 24... Nf4 {[%clk 0:01:37.2]} 25. Rfe1
{[%clk 0:00:48.4]} 25... Nd3 {[%clk 0:01:34.6]} 26. Qd4 {[%clk 0:00:35.8]} 26...
Nxe1 {[%clk 0:01:33.1]} 27. Rxe1 {[%clk 0:00:36.7]} 27... Rfe8 {[%clk
0:01:32.3]} 28. Rxe8+ {[%clk 0:00:32.5]} 28... Rxe8 {[%clk 0:01:32.1]} 29. Qxb4
{[%clk 0:00:32.4]} 29... Qc1+ {[%clk 0:01:28.8]} 30. Kh2 {[%clk 0:00:32.5]}
30... Qb2 {[%clk 0:01:28.6]} 31. a4 {[%clk 0:00:26.6]} 31... Qxf2 {[%clk
0:01:28]} 32. Nc6 {[%clk 0:00:20.3]} 32... Bg6 {[%clk 0:01:15.2]} 33. Qd4 {[%clk
0:00:19.4]} 33... Qa2 {[%clk 0:01:09.5]} 34. a5 {[%clk 0:00:18.6]} 34... Qxb3
{[%clk 0:01:00]} 35. a6 {[%clk 0:00:17.2]} 35... Qa2 {[%clk 0:00:55.5]} 36. a7
{[%clk 0:00:17.4]} 36... Ra8 {[%clk 0:00:50.7]} 37. Qe3 {[%clk 0:00:16.4]} 37...
Kh7 {[%clk 0:00:50.5]} 38. Nf5 {[%clk 0:00:16.3]} 38... Qc2 {[%clk 0:00:44]} 39.
Nfe7 {[%clk 0:00:12.8]} 39... Bd3 {[%clk 0:00:40.3]} 40. Kg3 {[%clk 0:00:13]}
40... g6 {[%clk 0:00:37.8]} 41. h4 {[%clk 0:00:12.9]} 41... Qd1 {[%clk
0:00:35.5]} 42. Qf2 {[%clk 0:00:08.5]} 42... Kg7 {[%clk 0:00:33.6]} 43. Qd4+
{[%clk 0:00:08.7]} 43... Kh7 {[%clk 0:00:32.2]} 44. Qf4 {[%clk 0:00:09]} 44...
Kg7 {[%clk 0:00:31.1]} 45. g5 {[%clk 0:00:09.6]} 45... hxg5 {[%clk 0:00:26.6]}
46. hxg5 {[%clk 0:00:10.5]} 46... Qe1+ {[%clk 0:00:26.8]} 47. Qf2 {[%clk
0:00:10.4]} 47... Qc3 {[%clk 0:00:22.4]} 48. Qf6+ {[%clk 0:00:09.6]} 48... Qxf6
{[%clk 0:00:22.5]} 49. gxf6+ {[%clk 0:00:10.5]} 49... Kxf6 {[%clk 0:00:23.3]}
50. Kf4 {[%clk 0:00:11.2]} 50... Ba6 {[%clk 0:00:23.1]} 51. Ke3 {[%clk
0:00:10.9]} 51... Bb7 {[%clk 0:00:23]} 52. Bf1 {[%clk 0:00:10.7]} 52... Bxc6
{[%clk 0:00:22.5]} 53. Nxc6 {[%clk 0:00:11.6]} 53... Kg5 {[%clk 0:00:20.4]} 54.
Ba6 {[%clk 0:00:11.7]} 54... f5 {[%clk 0:00:20.8]} 55. Bb7 {[%clk 0:00:11.8]}
55... Rxa7 {[%clk 0:00:21.2]} 56. Nxa7 {[%clk 0:00:12.7]} 56... Kf6 {[%clk
0:00:21.2]} 57. Nb5 {[%clk 0:00:12.9]} 57... Ke5 {[%clk 0:00:20.8]} 58. Nxc7
{[%clk 0:00:13.5]} 58... g5 {[%clk 0:00:20.9]} 59. Ne6 {[%clk 0:00:11.2]} 59...
g4 {[%clk 0:00:20.8]} 60. Nf4 {[%clk 0:00:11.5]} 60... Kf6 {[%clk 0:00:21]} 61.
Ba6 {[%clk 0:00:11.1]} 61... Ke5 {[%clk 0:00:21.4]} 62. Bd3 {[%clk 0:00:11.1]}
62... Kf6 {[%clk 0:00:21.5]} 63. Kd4 {[%clk 0:00:11.4]} 63... Kg5 {[%clk
0:00:21.9]} 64. Ne6+ {[%clk 0:00:11.9]} 64... Kf6 {[%clk 0:00:21.8]} 65. Be2
{[%clk 0:00:08.3]} 65... Ke7 {[%clk 0:00:20.1]} 66. Ke3 {[%clk 0:00:08]} 66...
Kf6 {[%clk 0:00:20.6]} 67. Kf4 {[%clk 0:00:08.7]} 67... g3 {[%clk 0:00:19.9]}
68. Kxg3 {[%clk 0:00:08.5]} 68... Ke5 {[%clk 0:00:20.4]} 69. Bf3 {[%clk
0:00:08.3]} 69... f4+ {[%clk 0:00:19.4]} 70. Kg4 {[%clk 0:00:08.6]} 70... Kf6
{[%clk 0:00:18.2]} 71. Kxf4 {[%clk 0:00:09.1]} 71... Kg6 {[%clk 0:00:19.1]} 72.
Nd4 {[%clk 0:00:09.1]} 72... Kf6 {[%clk 0:00:20]} 73. Nf5 {[%clk 0:00:09.8]} 1-0

[Event "Early-Titled-Tuesday-Blitz-February-20-2024"]
[Site "Chess.com"]
[Date "2024.02.20"]
[Round "5"]
[White "PavelShkapenko"]
[Black "Der_Balak_3Halak"]
[Result "1-0"]
[WhiteElo "2713"]
[BlackElo "2446"]
[TimeControl "180+1"]
[EndTime "8:57:17 PST"]
[Termination "PavelShkapenko won by checkmate"]

1. e4 {[%clk 0:03:00.9]} 1... c5 {[%clk 0:02:59.5]} 2. c3 {[%clk 0:02:59.7]}
2... e6 {[%clk 0:02:57.3]} 3. d4 {[%clk 0:02:59.1]} 3... cxd4 {[%clk 0:02:58.2]}
4. cxd4 {[%clk 0:02:58.8]} 4... d5 {[%clk 0:02:58.8]} 5. e5 {[%clk 0:02:57.8]}
5... Nc6 {[%clk 0:02:59.1]} 6. Nf3 {[%clk 0:02:55.7]} 6... Qb6 {[%clk 0:02:57]}
7. Be2 {[%clk 0:02:37.7]} 7... Bb4+ {[%clk 0:02:55.4]} 8. Bd2 {[%clk 0:02:32.7]}
8... Nge7 {[%clk 0:02:36.7]} 9. O-O {[%clk 0:02:18.3]} 9... O-O {[%clk
0:02:29.3]} 10. Bxb4 {[%clk 0:02:09.5]} 10... Qxb4 {[%clk 0:02:28.6]} 11. Qd2
{[%clk 0:02:10.1]} 11... Nf5 {[%clk 0:02:23]} 12. Qxb4 {[%clk 0:02:01.1]} 12...
Nxb4 {[%clk 0:02:23.9]} 13. Nc3 {[%clk 0:02:01.6]} 13... Bd7 {[%clk 0:02:21.5]}
14. Rac1 {[%clk 0:01:59.9]} 14... Rac8 {[%clk 0:02:19.2]} 15. Rfd1 {[%clk
0:01:55.7]} 15... a6 {[%clk 0:01:57.1]} 16. h4 {[%clk 0:01:25.3]} 16... b5
{[%clk 0:01:50.3]} 17. a3 {[%clk 0:01:09.3]} 17... Nc6 {[%clk 0:01:49.9]} 18.
Bd3 {[%clk 0:01:08.9]} 18... g6 {[%clk 0:01:41.9]} 19. Bxf5 {[%clk 0:01:08]}
19... gxf5 {[%clk 0:01:42.1]} 20. Ne2 {[%clk 0:01:05.6]} 20... f6 {[%clk
0:01:34]} 21. exf6 {[%clk 0:01:04.5]} 21... Rxf6 {[%clk 0:01:34.9]} 22. Nf4
{[%clk 0:01:04.1]} 22... h6 {[%clk 0:01:26.8]} 23. Nd3 {[%clk 0:00:59.6]} 23...
Rff8 {[%clk 0:01:16.3]} 24. Nde5 {[%clk 0:00:57]} 24... Nxe5 {[%clk 0:01:08.7]}
25. Nxe5 {[%clk 0:00:56.1]} 25... Rxc1 {[%clk 0:01:09.2]} 26. Rxc1 {[%clk
0:00:55.6]} 26... Rc8 {[%clk 0:01:09.5]} 27. Rc5 {[%clk 0:00:51.3]} 27... Rxc5
{[%clk 0:00:58.3]} 28. dxc5 {[%clk 0:00:52.2]} 28... Bc8 {[%clk 0:00:56]} 29.
Kh2 {[%clk 0:00:51.2]} 29... f4 {[%clk 0:00:48]} 30. Nd3 {[%clk 0:00:47.7]}
30... Bb7 {[%clk 0:00:47]} 31. Nxf4 {[%clk 0:00:39.3]} 31... e5 {[%clk
0:00:47.3]} 32. Ng6 {[%clk 0:00:32.6]} 32... e4 {[%clk 0:00:47.4]} 33. Ne7+
{[%clk 0:00:32.9]} 33... Kf7 {[%clk 0:00:44.5]} 34. c6 {[%clk 0:00:33.2]} 34...
Ba8 {[%clk 0:00:42]} 35. Nxd5 {[%clk 0:00:25]} 35... Bxc6 {[%clk 0:00:40.8]} 36.
Nb4 {[%clk 0:00:21.3]} 36... Bb7 {[%clk 0:00:40.2]} 37. Kg3 {[%clk 0:00:21.6]}
37... Ke6 {[%clk 0:00:32.5]} 38. Kf4 {[%clk 0:00:21.7]} 38... e3 {[%clk
0:00:28.7]} 39. fxe3 {[%clk 0:00:20]} 39... a5 {[%clk 0:00:29.2]} 40. Nc2 {[%clk
0:00:17.9]} 40... Bxg2 {[%clk 0:00:25.2]} 41. e4 {[%clk 0:00:17.6]} 41... Bf1
{[%clk 0:00:20.6]} 42. Ne3 {[%clk 0:00:17.4]} 42... Bd3 {[%clk 0:00:19.8]} 43.
Nf5 {[%clk 0:00:17.9]} 43... h5 {[%clk 0:00:14.4]} 44. Ng7+ {[%clk 0:00:18]}
44... Kf7 {[%clk 0:00:10.7]} 45. Nxh5 {[%clk 0:00:18.1]} 45... Kg6 {[%clk
0:00:11.1]} 46. Ng3 {[%clk 0:00:18.3]} 46... b4 {[%clk 0:00:11.8]} 47. axb4
{[%clk 0:00:17.9]} 47... axb4 {[%clk 0:00:12.7]} 48. Ke5 {[%clk 0:00:14.4]}
48... b3 {[%clk 0:00:11.4]} 49. Kd6 {[%clk 0:00:13.9]} 49... Kf6 {[%clk
0:00:11.3]} 50. e5+ {[%clk 0:00:14.2]} 50... Kf7 {[%clk 0:00:12]} 51. e6+ {[%clk
0:00:14.4]} 51... Ke8 {[%clk 0:00:12.6]} 52. Nh5 {[%clk 0:00:14.6]} 52... Kf8
{[%clk 0:00:10.2]} 53. Nf6 {[%clk 0:00:14.5]} 53... Bb5 {[%clk 0:00:10.1]} 54.
h5 {[%clk 0:00:12.6]} 54... Ba4 {[%clk 0:00:06.8]} 55. h6 {[%clk 0:00:11.9]}
55... Bd7 {[%clk 0:00:07.2]} 56. exd7 {[%clk 0:00:11.2]} 56... Kf7 {[%clk
0:00:08.1]} 57. d8=Q {[%clk 0:00:10.7]} 57... Kg6 {[%clk 0:00:08.3]} 58. Qg8+
{[%clk 0:00:10.6]} 58... Kf5 {[%clk 0:00:08.9]} 59. h7 {[%clk 0:00:10]} 59...
Kf4 {[%clk 0:00:08.8]} 60. Qg4+ {[%clk 0:00:09.8]} 60... Ke3 {[%clk 0:00:08.8]}
61. Nd5+ {[%clk 0:00:09.8]} 61... Kd3 {[%clk 0:00:08.9]} 62. h8=Q {[%clk
0:00:08.6]} 62... Kc2 {[%clk 0:00:09.5]} 63. Qc3+ {[%clk 0:00:08.7]} 63... Kb1
{[%clk 0:00:10]} 64. Qxb3 {[%clk 0:00:07.5]} 64... Kc1 {[%clk 0:00:09.4]} 65.
Qf4+ {[%clk 0:00:07.9]} 65... Kb1 {[%clk 0:00:09.9]} 66. Qf1# {[%clk 0:00:08.6]}
1-0